Workbook

Sheet 2024
A1: Период | B1: Дата снятия показания счётчика | C1: Показание счётчика | D1: Разница показаний | E1: Оплата потребителем | K1: лето | N1: зима
E2: дата | F2: сумма | K2: 0 | L2: 650 | N2: 0 | O2: 650
A3: 2024-01-01 | C3: 1250 | D3: 501 | F3: =Tarif(IF(OR(MONTH(A3)<3,MONTH(A3)>10),$N$2:$O$6,$K$2:$L$6),D3) -> 326500 | K3: 100 | L3: 1500 | N3: 500 | O3: 1500
A4: 2024-02-01 | C4: 1867 | D4: =C4-C3 -> 617 | F4: =Tarif(IF(OR(MONTH(A4)<3,MONTH(A4)>10),$N$2:$O$6,$K$2:$L$6),D4) -> 500500 | K4: 2500 | L4: 1950 | N4: 2500 | O4: 1950
A5: 2024-03-01 | F5: =Tarif(IF(OR(MONTH(A5)<3,MONTH(A5)>10),$N$2:$O$6,$K$2:$L$6),D5) -> 0 | K5: 5000 | L5: 2275 | N5: 5000 | O5: 2275
A6: 2024-04-01 | F6: =Tarif(IF(OR(MONTH(A6)<3,MONTH(A6)>10),$N$2:$O$6,$K$2:$L$6),D6) -> 0 | K6: 10000 | L6: 2600 | N6: 10000 | O6: 2600
A7: 2024-05-01 | F7: =Tarif(IF(OR(MONTH(A7)<3,MONTH(A7)>10),$N$2:$O$6,$K$2:$L$6),D7) -> 0
A8: 2024-06-01 | F8: =Tarif(IF(OR(MONTH(A8)<3,MONTH(A8)>10),$N$2:$O$6,$K$2:$L$6),D8) -> 0
A9: 2024-07-01 | F9: =Tarif(IF(OR(MONTH(A9)<3,MONTH(A9)>10),$N$2:$O$6,$K$2:$L$6),D9) -> 0 | K9: зима | L9: лето
A10: 2024-08-01 | B10: 2024-08-30 | C10: 39 | F10: =Tarif(IF(OR(MONTH(A10)<3,MONTH(A10)>10),$N$2:$O$6,$K$2:$L$6),D10) -> 0 | J10: 617 | K10: =Tarif($N$2:$O$6,J10) -> 500500 | L10: =Tarif($K$2:$L$6,J10) -> 840500
A11: 2024-09-01 | B11: 2024-09-29 | C11: 78 | D11: =C11-C10 -> 39 | F11: =Tarif(IF(OR(MONTH(A11)<3,MONTH(A11)>10),$N$2:$O$6,$K$2:$L$6),D11) -> 25350
A12: 2024-10-01 | B12: 2024-10-28 | C12: 129 | D12: 51 | F12: =Tarif(IF(OR(MONTH(A12)<3,MONTH(A12)>10),$N$2:$O$6,$K$2:$L$6),D12) -> 33150
A13: 2024-11-01 | B13: 2023-11-27 | C13: 350 | D13: 221 | F13: =Tarif(IF(OR(MONTH(A13)<3,MONTH(A13)>10),$N$2:$O$6,$K$2:$L$6),D13) -> 143650
A14: 2024-12-01 | B14: 2023-12-28 | C14: 1250 | D14: 900 | F14: =Tarif(IF(OR(MONTH(A14)<3,MONTH(A14)>10),$N$2:$O$6,$K$2:$L$6),D14) -> 925000
A15: 2025-01-01 | C15: 1810 | D15: 560 | F15: =Tarif(IF(OR(MONTH(A15)<3,MONTH(A15)>10),$N$2:$O$6,$K$2:$L$6),D15) -> 415000
A16: 2025-02-01 | C16: 2020 | D16: 210 | F16: =Tarif(IF(OR(MONTH(A16)<3,MONTH(A16)>10),$N$2:$O$6,$K$2:$L$6),D16) -> 136500
A17: 2025-03-01 | C17: 2121 | D17: 101 | F17: =Tarif(IF(OR(MONTH(A17)<3,MONTH(A17)>10),$N$2:$O$6,$K$2:$L$6),D17) -> 66500 | G17: =100*650 -> 65000 | H17: =1*1500 -> 1500 | I17: =G17+H17 -> 66500

Sheet 2025
A1: Период | B1: Дата снятия показания счётчика | C1: Показание счётчика | D1: Разница показаний | E1: Оплата потребителем | K1: лето | N1: зима
E2: дата | F2: сумма | K2: 0 | L2: 650 | N2: 0 | O2: 650
A3: 2025-01-01 | C3: 1810 | D3: =C3-'2024'!C14 -> 560 | F3: =D3*VLOOKUP(D3,IF(OR(MONTH(A3)<3,MONTH(A3)>10),$N$2:$O$6,$K$2:$L$6),2,1) -> 840000 | G3: =500*650 -> 325000 | H3: =60*1500 -> 90000 | I3: =G3+H3 -> 415000 | J3: =Tarif(IF(OR(MONTH(A3)<3,MONTH(A3)>10),$N$2:$O$6,$K$2:$L$6),D3) -> 415000 | K3: 100 | L3: 1500 | N3: 500 | O3: 1500
A4: 2025-02-01 | C4: 2020 | D4: =C4-C3 -> 210 | F4: =D4*VLOOKUP(D4,IF(OR(MONTH(A4)<3,MONTH(A4)>10),$N$2:$O$6,$K$2:$L$6),2,1) -> 136500 | G4: =210*650 -> 136500 | I4: =G4 -> 136500 | J4: =Tarif(IF(OR(MONTH(A4)<3,MONTH(A4)>10),$N$2:$O$6,$K$2:$L$6),D4) -> 136500 | K4: 2500 | L4: 1950 | N4: 2500 | O4: 1950
A5: 2025-03-01 | C5: 2121 | D5: =C5-C4 -> 101 | F5: =D5*VLOOKUP(D5,IF(OR(MONTH(A5)<3,MONTH(A5)>10),$N$2:$O$6,$K$2:$L$6),2,1) -> 151500 | G5: =100*650 -> 65000 | H5: =1*1500 -> 1500 | I5: =G5+H5 -> 66500 | J5: =Tarif(IF(OR(MONTH(A5)<3,MONTH(A5)>10),$N$2:$O$6,$K$2:$L$6),D5) -> 66500 | K5: 5000 | L5: 2275 | N5: 5000 | O5: 2275
A6: 2025-04-01 | C6: 2194 | D6: =C6-C5 -> 73 | F6: =D6*VLOOKUP(D6,IF(OR(MONTH(A6)<3,MONTH(A6)>10),$N$2:$O$6,$K$2:$L$6),2,1) -> 47450 | J6: =Tarif(IF(OR(MONTH(A6)<3,MONTH(A6)>10),$N$2:$O$6,$K$2:$L$6),D6) -> 47450 | K6: 10000 | L6: 2600 | N6: 10000 | O6: 2600
A7: 2025-05-01 | C7: 2356 | D7: =C7-C6 -> 162 | F7: =D7*VLOOKUP(D7,IF(OR(MONTH(A7)<3,MONTH(A7)>10),$N$2:$O$6,$K$2:$L$6),2,1) -> 243000 | G7: =100*650 -> 65000 | H7: =62*1500 -> 93000 | I7: =G7+H7 -> 158000 | J7: =Tarif(IF(OR(MONTH(A7)<3,MONTH(A7)>10),$N$2:$O$6,$K$2:$L$6),D7) -> 158000
A8: 2025-06-01 | C8: 2518 | D8: =C8-C7 -> 162 | F8: =IF(D8>0,IF(D8<=100,D8*Тариф!$B$4,IF(D8<=2500,100*Тариф!$B$4+(D8-100)*Тариф!$B$5,IF(D8<=5000,100*Тариф!$B$4+2400*Тариф!$B$5+(D8-5000)*Тариф!$B$6))),2) -> 158000 | J8: =Tarif(IF(OR(MONTH(A8)<3,MONTH(A8)>10),$N$2:$O$6,$K$2:$L$6),D8) -> 158000
A9: 2025-07-01
A10: 2025-08-01
A11: 2025-09-01
A12: 2025-10-01
A13: 2025-11-01
A14: 2025-12-01

Sheet Тариф
A1: Социальная норма на газ (с 01.05.2024)
A2: летний период (март-октябрь)
A3: куб. м | B3: тариф | D3: лето | G3: зима
A4: 0-100 | B4: 650 | D4: 0 | E4: 650 | G4: 0 | H4: 650 | K4: 221 | L4: =K4*VLOOKUP(K4,$G$4:$H$8,2,1) -> 143650
A5: 101-2500 | B5: 1500 | D5: 100 | E5: 1500 | G5: 500 | H5: 1500
A6: 2501-5000 | B6: 1950 | D6: 2500 | E6: 1950 | G6: 2500 | H6: 1950
A7: 5001-10000 | B7: 2275 | D7: 5000 | E7: 2275 | G7: 5000 | H7: 2275
A8: 10001 и более | B8: 2600 | D8: 10000 | E8: 2600 | G8: 10000 | H8: 2600
A9: зимний период (ноябрь-февраль)
A10: 0-500 | B10: 650
A11: 501-2500 | B11: 1500
A12: 2501-5000 | B12: 1950
A13: 5001-10000 | B13: 2275
A14: 10001 и более | B14: 2600

Sheet Формула
A1: Формула расчёта по оплате израсходованного газа
A2: летний период (март-октябрь)
A3: ЕСЛИ(D11>0;ЕСЛИ(D11<=100;D11*Тариф!$B$3;ЕСЛИ(D11<=2500;100*Тариф!$B$3+(D11-100)*Тариф!$B$4;ЕСЛИ(D11<=5000;100*Тариф!$B$3+2400*Тариф!$B$4+(D11-5000)*Тариф!$B$5)));2)
A4: зимний период (ноябрь-февраль)
A5: ЕСЛИ(D11>0;ЕСЛИ(D11<=500;D11*Тариф!$B$9;ЕСЛИ(D11<=2500;500*Тариф!$B$9+(D11-500)*Тариф!$B$10;ЕСЛИ(D11<=5000;500*Тариф!$B$9+2000*Тариф!$B$10+(D11-5000)*Тариф!$B$11)));2)
